bitfinex/quotes_ETHUSD_20240630
["timestamp","ask_amount","ask_price","bid_price","bid_amount"]
[1719774552664,0.146,3426.6,3426.4,0.0302416]
[1719774552863,0.146,3426.6,3426.4,0.05728932]
[1719774554479,0.836,3426.5,3426.4,0.05728932]
[1719774554777,0.836,3426.5,3426.0,2.3872]
[1719774554986,0.836,3426.5,3426.4,0.05732177]
[1719774555284,0.836,3426.5,3425.8,2.3872]
[1719774555460,0.836,3426.5,3425.8,2.62592]
[1719774555763,0.836,3426.5,3425.9,0.057484]
[1719774556269,0.836,3426.3,3425.9,0.057484]
[1719774558359,0.836,3426.1,3425.9,0.057484]
[1719774560575,0.836,3426.3,3425.9,0.057484]
[1719774561368,0.146,3426.6,3425.9,0.057484]
[1719774561573,0.836,3426.3,3425.9,0.057484]
[1719774562457,0.54796,3426.5,3425.9,0.057484]
[1719774562631,0.836,3426.3,3425.9,0.057484]
[1719774564524,0.146,3426.6,3426.0,2.3872]
[1719774564732,0.146,3426.6,3426.1,0.05836876]
[1719774564946,0.146,3426.6,3426.1,0.11589677]
[1719774565632,0.146,3426.6,3426.2,2.3872]
[1719774565959,0.146,3426.6,3426.3,0.05746311]
[1719774566287,0.146,3426.6,3426.2,2.3872]
[1719774566486,0.146,3426.6,3426.4,0.05743067]
[1719774566870,0.146,3426.6,3426.2,2.3872]
[1719774567384,0.146,3426.6,3426.3,0.05746311]
[1719774567547,0.146,3426.6,3426.2,2.3872]
[1719774567747,0.146,3426.6,3426.3,0.05746311]
[1719774567950,0.146,3426.6,3426.2,2.3872]
[1719774568288,0.146,3426.6,3426.3,0.05564031]
[1719774568705,0.146,3426.6,3426.2,2.3872]
[1719774568912,0.146,3426.6,3426.4,0.05560786]
[1719774569205,0.146,3426.6,3426.5,0.05557542]
[1719774569356,0.146,3426.6,3426.2,2.3872]
[1719774569557,0.836,3426.5,3426.3,0.05563201]
[1719774569862,0.836,3426.5,3426.2,2.3872]
[1719774570056,0.146,3426.6,3426.4,0.05559956]
[1719774570263,0.146,3426.6,3426.3,0.05563201]
[1719774570496,0.146,3426.6,3426.5,0.05556712]
[1719774570964,0.146,3426.6,3426.2,2.3872]
[1719774571290,0.146,3426.6,3426.3,0.05563201]
[1719774571660,0.146,3426.6,3426.2,2.3872]
[1719774571855,0.146,3426.6,3426.4,0.05559956]
[1719774572057,0.146,3426.6,3426.3,0.05563201]
[1719774572273,0.146,3426.6,3426.5,0.05556712]
[1719774572497,0.146,3426.6,3426.4,0.05559956]
[1719774572661,0.146,3426.6,3426.5,0.05556712]
[1719774573088,0.146,3426.6,3426.2,2.3872]
[1719774573301,0.146,3426.6,3426.5,0.05556712]
[1719774573462,0.146,3426.6,3426.2,2.3872]
[1719774573662,0.146,3426.6,3426.5,0.05556712]
[1719774574295,0.146,3426.6,3426.2,2.3872]
[1719774574514,0.146,3426.6,3426.5,0.05556712]
[1719774574674,0.146,3426.6,3426.2,2.3872]
[1719774574881,0.146,3426.6,3426.5,0.05556712]
[1719774575364,0.35840761,3426.6,3426.2,2.3872]
[1719774575566,0.146,3426.6,3426.2,2.3872]
[1719774578405,0.21240913,3426.5,3426.2,2.3872]
[1719774578615,0.146,3426.6,3426.2,2.3872]
[1719774578917,0.836,3426.3,3424.8,0.60927942]
[1719774579123,0.836,3426.3,3425.3,3.1226]
[1719774579291,0.21243274,3426.2,3425.3,2.44657106]
[1719774580711,0.836,3426.3,3425.3,2.44657106]
[1719774580911,0.836,3426.3,3425.4,0.836]
[1719774581228,0.836,3426.3,3425.5,0.05594454]
[1719774581434,0.836,3426.3,3425.6,2.3906]
[1719774581723,3.2388,3426.4,3425.6,2.71885445]
[1719774581926,0.21242275,3426.3,3425.7,0.05587963]
[1719774583117,0.982,3426.6,3425.7,0.11425516]
[1719774583325,0.21241231,3426.5,3425.7,0.11425516]
[1719774583537,0.21241231,3426.5,3425.8,0.36691096]
[1719774583738,0.21241231,3426.5,3425.8,0.42528474]
[1719774583905,0.21241231,3426.5,3425.9,0.05581472]
[1719774584621,0.21241231,3426.5,3425.8,0.36691096]
[1719774584829,0.21241231,3426.5,3425.9,0.05581472]
[1719774585025,1.04840997,3426.4,3425.9,0.05581472]
[1719774585336,3.2388,3426.2,3425.6,2.3906]
[1719774585546,0.21243726,3426.1,3426.0,0.05578227]
[1719774585725,0.21243726,3426.1,3425.4,2.3906]
[1719774585911,0.21243726,3426.1,3426.0,0.05578954]
[1719774586100,0.21243726,3426.1,3425.4,2.3906]
[1719774586305,0.21243726,3426.1,3426.0,0.05578954]
[1719774586506,0.21243726,3426.1,3425.4,2.3906]
[1719774586742,0.21243726,3426.1,3426.0,0.05578954]
[1719774587214,0.21243726,3426.1,3425.4,2.3906]
[1719774587538,0.21243726,3426.1,3426.0,0.05578954]
[1719774587712,0.21243726,3426.1,3425.4,2.3906]
[1719774587917,0.21243726,3426.1,3426.0,0.05578954]
[1719774588131,0.836,3426.1,3425.4,2.3906]
[1719774588315,0.836,3426.1,3426.0,0.05578954]
[1719774588503,1.04843787,3426.1,3425.1,2.3307]
[1719774588706,0.836,3426.1,3425.1,2.3307]
[1719774588906,0.2124416,3426.0,3425.2,0.05604919]
[1719774589202,1.0484416,3426.0,3425.2,0.05604919]
[1719774589538,0.836,3426.0,3425.3,2.3307]
[1719774589749,0.836,3426.0,3425.3,2.38671673]
[1719774589919,3.2388,3426.2,3425.3,2.7089884]
[1719774590241,0.21244105,3426.1,3425.3,2.7089884]
[1719774591214,3.2388,3426.2,3425.3,2.7089884]
[1719774591416,3.2388,3426.2,3425.4,0.05838011]
[1719774591417,0.21244028,3426.1,3425.4,0.05838011]
[1719774591635,0.21244028,3426.1,3425.5,0.05604623]
[1719774592361,0.55756431,3426.1,3425.5,0.05604623]
[1719774592655,0.836,3426.0,3425.3,2.3307]
[1719774592840,0.836,3426.0,3425.6,0.05601377]
[1719774593039,0.836,3426.0,3425.3,2.3307]
[1719774593238,0.836,3426.0,3425.4,0.05607765]
[1719774597457,3.2388,3426.2,3425.4,0.05607765]
[1719774597652,0.21243913,3426.1,3425.4,0.05607765]
[1719774598050,3.56268,3426.2,3425.4,0.05607765]
[1719774598261,0.2124406,3426.1,3425.4,0.05607765]
[1719774598565,3.56268,3426.2,3425.4,0.05607765]
[1719774598772,0.21244075,3426.1,3425.4,0.05607765]
[1719774599335,0.58995282,3426.1,3425.4,0.05607765]
[1719774599537,0.37751207,3426.1,3425.4,0.05607765]
[1719774600438,1.04844088,3426.0,3425.4,0.05607765]
[1719774600639,0.836,3426.0,3425.4,0.05607765]
[1719774601386,3.1185,3425.5,3425.4,0.05607765]
[1719774601578,3.64279787,3425.5,3425.4,0.05607765]
[1719774601740,2.80679787,3425.5,3424.3,2.2659]
[1719774601937,0.836,3425.2,3424.3,2.2659]
[1719774602280,3.21244787,3425.4,3424.6,0.836]
[1719774602281,3.0,3425.4,3424.6,0.836]
[1719774602889,3.1185,3425.5,3424.6,0.836]
[1719774603040,2.59435,3425.5,3424.6,0.836]
[1719774603239,3.836,3425.4,3424.4,0.89439754]
[1719774603442,3.836,3425.4,3424.3,2.2659]
[1719774603691,3.836,3425.4,3424.3,3.1019]
[1719774604285,3.836,3425.4,3424.4,0.051093]
[1719774604593,0.836,3424.7,3424.4,0.051093]
[1719774604830,0.836,3424.9,3424.4,0.051093]
[1719774604960,0.836,3424.9,3424.0,3.1019]
[1719774605158,0.836,3424.9,3424.5,0.04782773]
[1719774605452,0.836,3424.9,3424.0,2.2659]
[1719774605660,0.836,3424.9,3424.1,0.27454765]
[1719774608686,0.836,3424.9,3424.1,0.22659]
[1719774608887,0.836,3424.9,3424.2,0.04792517]
[1719774609052,0.808,3424.9,3424.2,0.04792517]
[1719774610358,0.836,3424.5,3424.2,0.04792517]
[1719774610593,0.836,3424.5,3423.2,7.32]
[1719774610759,0.836,3424.5,3423.8,2.4585]
[1719774610955,0.836,3424.7,3423.8,2.4585]
[1719774611197,0.836,3424.7,3423.9,0.04802263]
[1719774614183,0.836,3424.5,3423.9,0.04802263]
[1719774614374,0.836,3424.3,3423.9,0.04802263]
[1719774615002,0.836,3424.3,3423.5,2.3608]
[1719774615217,0.836,3424.3,3423.6,0.31968]
[1719774615394,0.836,3424.1,3423.6,0.0481201]
[1719774616305,0.836,3424.1,3423.5,2.3608]
[1719774616641,0.836,3424.1,3423.6,0.0482219]
[1719774616817,0.836,3423.9,3422.8,0.07664129]
[1719774617014,3.0,3424.2,3422.9,2.3608]
[1719774617231,3.0,3424.2,3423.2,0.836]
[1719774617434,0.836,3424.0,3423.3,0.04670352]
[1719774618038,3.0,3424.2,3423.4,2.3608]
[1719774618248,0.836,3424.3,3423.5,0.04666969]
[1719774618495,0.836,3424.2,3423.5,0.04666969]
[1719774618741,0.836,3424.2,3423.5,0.37101666]
[1719774620409,0.836,3424.2,3423.5,0.32434697]
[1719774620719,0.836,3424.2,3423.6,0.0466372]
[1719774621560,0.836,3424.2,3423.5,0.32434697]
[1719774621724,0.836,3424.2,3423.7,0.0466047]
[1719774621933,0.836,3424.2,3423.6,0.0466372]
[1719774622148,0.836,3424.2,3423.8,0.04657221]
[1719774622313,0.836,3424.0,3423.7,0.0466047]
[1719774622655,0.836,3424.0,3423.8,0.04655454]
[1719774622955,0.836,3424.0,3423.1,2.3608]
[1719774623124,0.836,3423.7,3423.1,2.3608]
[1719774623327,0.836,3423.7,3423.2,0.04674953]
[1719774623547,0.5,3423.3,3423.2,0.04674953]
[1719774623852,3.0,3423.9,3422.6,2.3608]
[1719774624058,0.836,3423.6,3422.8,0.46240668]
[1719774624263,0.836,3423.6,3422.9,0.04684704]
[1719774624612,0.5,3423.0,3422.9,0.04684704]
[1719774629223,3.6504,3423.0,3422.9,0.04684704]
[1719774629575,7.01544,3423.0,3422.0,7.32]
[1719774629715,0.836,3422.8,3421.9,0.836]
[1719774629927,0.836,3422.8,3422.1,0.04567982]
[1719774630127,0.5,3422.2,3422.0,0.04571235]
[1719774630354,0.836,3422.6,3421.6,2.4085]
[1719774630674,0.5,3421.8,3421.7,0.24593816]
[1719774630845,0.5,3421.8,3421.7,1.08193816]
[1719774631027,0.06028685,3421.8,3421.7,1.08193816]
[1719774631449,0.06028685,3421.8,3421.7,3.49043816]
[1719774631763,0.00727129,3421.8,3421.7,3.49043816]
[1719774631951,0.00727129,3421.8,3421.7,6.41295816]
[1719774632128,0.00727129,3421.8,3421.7,6.96295816]
[1719774633443,0.00727129,3421.8,3421.7,9.88547816]
[1719774633642,0.00727129,3421.8,3421.7,12.96136836]
[1719774633951,0.00727129,3421.8,3421.7,13.97870794]
[1719774634368,0.00727129,3421.8,3421.7,12.96136836]
[1719774635298,0.00727129,3421.8,3421.7,13.97871572]
[1719774635592,0.00727129,3421.8,3421.7,12.96136836]
[1719774636158,0.00727129,3421.8,3421.7,13.97871571]
[1719774637261,0.00727129,3421.8,3421.7,12.96136836]
[1719774638196,0.00727129,3421.8,3421.7,13.97871687]
[1719774638384,0.00727129,3421.8,3421.7,12.96136836]
[1719774638887,0.00727129,3421.8,3421.7,13.97871247]
[1719774640326,0.00727129,3421.8,3421.7,15.50471017]
[1719774641991,0.00727129,3421.8,3421.7,15.50469829]
[1719774642422,0.00727129,3421.8,3421.7,15.50469712]
[1719774642722,0.00727129,3421.8,3421.7,16.11257141]
[1719774642947,3.0,3423.5,3422.6,2.3827]
[1719774643219,3.0,3423.5,3423.0,0.836]
[1719774643420,0.5,3423.1,3423.0,0.836]
[1719774643919,0.5,3423.1,3422.6,5.834917]
[1719774644118,0.5,3423.1,3422.9,0.836]
[1719774644284,3.0,3423.7,3422.9,0.836]
[1719774644484,0.62994,3423.7,3422.9,0.836]
[1719774644738,0.5,3423.0,3422.6,5.834867]
[1719774644898,0.5,3423.0,3422.9,0.836]
[1719774646486,0.5,3423.0,3422.9,3.75749]
[1719774646686,0.5,3423.0,3422.9,3.81590883]
[1719774646888,0.5,3423.0,3422.9,7.70246441]
[1719774647118,0.5,3423.0,3422.9,10.63516441]
[1719774647752,0.5,3423.0,3422.9,10.57674558]
[1719774648746,0.5,3423.0,3422.9,10.65223397]
[1719774651928,0.5,3423.0,3422.9,4.80925397]
[1719774652965,0.5,3423.0,3422.9,1.87655397]
[1719774653168,0.5,3423.0,3422.9,0.91148839]
[1719774659389,0.5,3423.0,3422.9,0.07548839]
[1719774659766,2.3827,3423.1,3422.9,0.836]
[1719774660081,0.5,3423.0,3422.9,0.91126498]
[1719774661596,0.5,3423.0,3422.9,0.07526498]
[1719774661889,0.5,3423.0,3422.9,0.836]
[1719774662600,0.5,3423.0,3422.9,0.89442144]
[1719774662802,0.5,3423.0,3422.9,1.04684956]
[1719774662983,0.5,3423.0,3422.9,1.88284956]
[1719774664470,0.5,3423.0,3422.9,4.80433956]
[1719774665513,0.5,3423.0,3422.9,1.88284956]
[1719774665717,0.5,3423.0,3422.9,1.82442812]
[1719774666080,0.5,3423.0,3422.9,0.98842812]
[1719774666415,0.5,3423.0,3422.9,1.82442812]
[1719774670646,0.5,3423.0,3422.9,4.80433658]
[1719774671318,0.5,3423.0,3422.9,7.72582658]
[1719774671522,0.5,3423.0,3422.9,8.27582658]
[1719774672641,0.5,3423.0,3422.9,10.72812658]
[1719774672810,0.5,3423.0,3422.9,14.74508012]
[1719774673420,0.5,3423.0,3422.9,14.74507845]
[1719774673846,0.5,3423.0,3422.9,19.19199702]
[1719774676742,5.8304,3424.4,3424.1,0.836]
[1719774676906,5.3304,3424.4,3424.2,0.07482286]
[1719774677105,2.3304,3424.4,3424.2,0.07482286]
[1719774677345,0.5,3424.3,3424.2,0.07482286]
[1719774678206,2.9411,3424.3,3424.2,0.07482286]
[1719774678545,2.9411,3424.3,3423.9,0.836]
[1719774680435,2.9411,3424.3,3423.8,0.836]
[1719774680641,2.4411,3424.3,3423.7,0.836]
[1719774680945,2.4411,3424.3,3423.8,0.07489223]
[1719774680946,2.68521,3424.3,3423.8,0.07489223]
[1719774681122,0.5,3423.9,3423.8,0.07489223]
[1719774681317,2.9411,3423.9,3423.7,0.836]
[1719774681562,2.4411,3423.9,3423.7,0.836]
[1719774681869,0.5,3423.8,3422.9,6.31226314]
[1719774682158,2.4411,3423.9,3423.6,0.836]
[1719774682543,0.5,3423.7,3423.6,0.836]
[1719774682721,0.5,3423.7,3422.9,5.3991]
[1719774682924,2.4411,3423.9,3422.9,2.3991]
[1719774683126,0.5,3423.0,3422.9,0.832079]
[1719774683326,0.5,3423.0,3422.9,1.668079]
[1719774688166,0.5,3423.0,3422.9,0.836]
[1719774689868,0.5,3423.0,3422.7,3.0]
[1719774690071,2.3387,3423.4,3422.9,0.836]
[1719774690277,2.3387,3423.4,3422.4,0.07664129]
[1719774690459,0.5,3422.6,3422.5,0.55]
[1719774690665,0.5,3422.6,3422.5,2.04442656]
[1719774693080,0.5,3422.6,3422.5,0.65842656]
[1719774693241,0.5,3422.6,3422.5,0.836]
[1719774693794,0.5,3422.6,3422.5,0.91140166]
[1719774694580,0.5,3422.6,3422.5,0.07540166]
[1719774694747,0.5,3422.6,3422.5,0.91140166]
[1719774700787,0.5,3422.6,3422.5,0.07540166]
[1719774700944,0.5,3422.6,3422.5,1.46126495]
[1719774705403,0.5,3422.6,3422.5,0.62526495]
[1719774705606,0.5,3422.6,3422.5,1.46126495]
[1719774707702,0.5,3422.6,3422.5,0.62526495]
[1719774707889,0.5,3422.6,3422.5,1.46126495]
[1719774709966,0.5,3422.6,3422.5,1.51969214]
[1719774711619,0.5,3422.6,3422.5,0.68369214]
[1719774711923,0.5,3422.6,3422.5,1.51969214]
[1719774714925,0.5,3422.6,3422.5,1.46126495]
[1719774725759,0.5,3422.6,3422.5,7.30494495]
[1719774726095,0.5,3422.6,3422.5,7.85494495]
[1719774726470,0.5,3422.6,3422.5,10.32364495]
[1719774726658,0.5,3422.6,3422.5,11.34080329]
[1719774726855,0.5,3422.6,3422.5,12.86652904]
[1719774727055,0.18418563,3422.6,3422.5,15.78836904]
[1719774727269,2.4203,3423.9,3423.2,2.92119]
[1719774727469,2.4203,3423.9,3423.8,0.836]
[1719774727672,2.9203,3423.9,3423.8,0.836]
[1719774727877,5.9203,3423.9,3423.8,0.91100181]
[1719774728172,2.4203,3423.9,3423.8,0.91100181]
[1719774728488,2.9203,3423.9,3423.8,0.836]
[1719774730779,0.5,3423.9,3423.8,0.836]
[1719774730975,0.5,3423.9,3423.8,0.91100181]
[1719774735500,2.9685,3423.9,3423.8,0.07500181]
[1719774735701,3.3185,3423.9,3423.8,0.07500181]
[1719774735942,2.9685,3423.9,3423.5,0.836]
[1719774736307,2.9685,3423.9,3423.6,0.07497757]
[1719774736746,2.9685,3423.9,3423.7,0.836]
[1719774738046,2.9685,3423.9,3422.9,7.32]
[1719774738215,2.4685,3423.9,3423.5,0.836]
[1719774738415,0.5,3423.6,3423.5,0.836]
[1719774740871,0.5,3423.6,3422.7,2.2711]
[1719774741147,2.4685,3423.9,3423.4,0.836]
[1719774741464,2.4685,3423.9,3423.6,0.836]
[1719774741810,0.5,3423.7,3423.6,0.836]
[1719774745508,2.4685,3423.9,3423.6,0.836]
[1719774745926,0.5,3423.7,3423.6,0.836]
[1719774746444,0.5,3423.7,3423.6,0.91101891]
[1719774751072,0.5,3423.7,3423.6,0.07501891]
[1719774751275,0.5,3423.7,3423.6,0.836]
[1719774751576,0.5,3423.7,3423.6,0.91101891]
[1719774752274,0.5,3423.7,3423.6,0.07501891]
[1719774752474,0.5,3423.7,3423.6,0.91101891]
[1719774765434,0.5,3423.7,3423.6,0.07501891]
[1719774765634,0.5,3423.7,3423.6,0.91101891]
[1719774765933,0.5,3423.7,3423.6,0.836]
[1719774766135,0.5,3423.7,3423.6,0.91101271]
[1719774766844,0.5,3423.7,3423.6,0.07501271]
[1719774767341,0.5,3423.7,3423.5,0.836]
[1719774767544,0.5,3423.7,3423.6,0.07501271]
[1719774767710,2.4685,3423.9,3423.6,0.07501271]
[1719774767945,2.4685,3423.9,3423.4,0.836]
[1719774768267,0.5,3423.7,3423.5,0.07504609]
[1719774770824,0.5,3423.7,3423.5,0.07316733]
[1719774773166,0.5,3423.7,3423.6,0.836]
[1719774773837,0.5,3423.7,3423.6,0.9109739]
[1719774774157,0.5,3423.7,3423.6,0.0749739]
[1719774774318,0.5,3423.7,3423.6,0.9109739]
[1719774774523,0.5,3423.7,3423.6,0.836]
[1719774774749,0.5,3423.7,3423.6,0.9109739]
[1719774782950,0.5,3423.7,3423.6,0.0749739]
[1719774783149,0.5,3423.7,3423.6,0.9109739]
[1719774807371,0.6,3423.7,3423.6,0.9109739]
[1719774812546,0.6,3423.7,3423.6,0.0749739]
[1719774812750,0.6,3423.7,3423.6,0.9109739]
[1719774813018,0.6,3423.7,3423.6,0.836]
[1719774813150,0.6,3423.7,3423.6,0.90879273]
[1719774815549,0.5,3423.7,3423.6,0.80879273]
[1719774825872,0.5,3423.7,3423.6,0.07279273]
[1719774826072,2.8436,3423.7,3423.6,0.07279273]
[1719774826274,2.8436,3423.7,3423.3,0.836]
[1719774826275,3.34052917,3423.7,3423.3,0.836]
[1719774826604,2.62796,3423.7,3423.3,0.836]
[1719774826807,0.5,3423.4,3423.3,0.836]
[1719774831099,0.5,3423.4,3422.6,9.7511]
[1719774831295,2.3436,3423.7,3423.3,0.836]
[1719774831631,0.5,3423.4,3423.3,0.836]
[1719774832284,2.3436,3423.7,3423.3,0.836]
[1719774832480,0.5,3423.4,3423.3,0.836]
[1719774837585,0.5,3423.4,3422.6,9.7511]
[1719774837792,0.5,3423.4,3422.7,1.33669941]
[1719774838032,0.5,3423.4,3423.3,0.836]
[1719774838232,2.3436,3423.7,3423.3,0.836]
[1719774838440,0.5,3423.4,3423.3,0.90895491]
[1719774841819,0.5,3423.4,3423.3,0.07295491]
[1719774842019,3.09276,3423.4,3423.3,0.07295491]
[1719774842238,3.09276,3423.4,3422.6,7.32]
[1719774842239,2.3084,3423.3,3422.6,7.32]
[1719774842401,0.836,3423.1,3422.6,7.32]
[1719774842601,0.836,3423.1,3422.7,0.07315522]
[1719774842808,2.3084,3423.0,3422.7,0.07315522]
[1719774843034,2.3084,3423.0,3422.2,2.4574]
[1719774843035,0.5,3422.8,3422.2,2.4574]
[1719774843237,2.3084,3423.0,3422.3,0.32934]
[1719774843537,0.5,3422.4,3422.3,0.32934]
[1719774846718,0.5,3422.4,3422.1,0.836]
[1719774847549,0.5,3422.4,3422.0,2.4574]
[1719774847753,0.5,3422.4,3422.1,0.836]
[1719774850213,0.5,3422.4,3422.0,2.4574]
[1719774850442,0.5,3422.4,3422.1,0.836]
[1719774850621,0.5,3422.4,3422.1,1.16534]
[1719774851946,0.5,3422.4,3422.1,0.32934]
[1719774852147,0.5,3422.4,3421.8,2.3942]
[1719774852444,2.3619,3422.6,3421.9,0.836]
[1719774852942,0.5,3422.0,3421.9,0.836]
[1719774858775,0.5,3422.0,3421.9,0.90954759]
[1719774859081,0.5,3422.0,3421.9,1.26451617]
[1719774867533,0.5,3422.0,3421.9,0.42851617]
[1719774867689,0.5,3422.0,3421.9,0.07354759]
[1719774871416,0.5,3422.0,3421.7,0.24593816]
[1719774871417,0.5,3422.0,3421.5,3.123]
[1719774871574,2.3276,3422.3,3421.9,0.07359416]
[1719774871943,0.5,3422.0,3421.5,3.123]
[1719774872075,2.3276,3422.3,3421.5,3.123]
[1719774872076,2.3276,3422.3,3421.5,4.111193]
[1719774872498,0.5,3421.6,3421.5,4.111193]
[1719774872709,0.5,3421.6,3421.5,4.661193]
[1719774873680,0.5,3421.6,3421.5,4.7349208]
[1719774884333,0.5,3421.6,3421.5,7.6576108]
[1719774884829,0.5,3421.6,3421.5,8.67510472]
[1719774885035,0.5,3421.6,3421.5,8.67510469]
[1719774887369,0.5,3421.6,3421.5,13.1240519]
[1719774887519,0.5,3421.6,3421.5,13.73655306]
[1719774888379,9.7736,3423.3,3422.4,2.4136]
[1719774888528,2.3461,3423.5,3423.2,0.836]
[1719774888882,7.32,3424.3,3423.2,0.836]
[1719774889088,0.77011018,3424.7,3423.2,0.836]
[1719774889089,0.5,3423.3,3423.2,0.836]
[1719774889835,3.1821,3424.2,3423.2,0.836]
[1719774890032,0.31821,3424.1,3423.2,0.836]
[1719774890424,0.31821,3424.1,3423.2,0.89441739]
[1719774891426,3.31821,3424.1,3423.2,0.89441739]
[1719774891668,4.15421,3424.1,3423.2,0.89441739]
[1719774892043,1.15421,3424.1,3423.2,0.89441739]
[1719774892246,0.350031,3424.0,3423.2,0.89441739]
[1719774894731,0.350031,3424.0,3423.0,0.836]
[1719774894938,0.836,3423.9,3423.0,0.836]
[1719774895444,2.2503,3423.8,3423.0,0.836]
[1719774896768,2.2503,3423.8,3422.9,2.3311]
[1719774896967,2.8939331,3423.8,3423.0,0.55]
[1719774900770,2.8939331,3423.8,3423.1,0.836]
[1719774900977,2.8939331,3423.8,3423.2,0.05841757]
[1719774901180,2.2503,3423.8,3423.2,0.05841757]
[1719774903658,2.2503,3423.8,3423.3,0.07058289]
[1719774904281,2.2503,3423.8,3423.4,0.07054951]
[1719774904591,2.2503,3423.8,3422.7,2.92164]
[1719774904881,2.2503,3423.8,3423.5,0.07051613]
[1719774905194,2.2503,3423.6,3422.9,0.836]
[1719774907945,2.2503,3423.6,3423.1,0.836]
[1719774909113,2.412,3423.9,3423.3,0.836]
[1719774909278,1.5,3426.1,3423.3,0.836]
[1719774909279,2.412,3424.7,3423.8,0.836]
[1719774909478,2.412,3424.7,3424.4,0.836]
[1719774910105,2.412,3424.7,3424.0,0.05840362]
[1719774910311,2.412,3424.7,3424.3,0.836]
[1719774911640,7.32,3425.8,3424.5,0.836]
[1719774911641,2.412,3425.7,3424.5,0.836]
[1719774911784,0.836,3425.5,3424.5,0.836]
[1719774912405,2.412,3425.7,3424.5,0.836]
[1719774912809,0.836,3425.5,3424.5,0.836]
[1719774913182,3.0,3425.6,3424.7,0.836]
[1719774913487,2.412,3425.7,3424.9,0.836]
[1719774913821,2.412,3425.7,3425.0,0.06989709]
[1719774913822,0.3248,3425.6,3425.0,0.06989709]
[1719774914799,3.3248,3425.6,3425.0,0.06989709]
[1719774917461,3.0,3425.4,3424.5,0.836]
[1719774917714,3.0,3425.4,3425.3,0.06887036]
[1719774917907,3.0,3425.4,3424.5,0.836]
[1719774918107,3.0,3425.4,3424.1,2.92042]
[1719774918407,3.08476,3425.3,3424.4,0.836]
[1719774918816,3.92076,3425.3,3424.5,0.06914537]
[1719774920936,3.0,3425.2,3424.5,0.06914537]
[1719774921111,3.0,3425.2,3424.2,0.836]
[1719774921320,3.0,3425.2,3424.6,0.06911202]
[1719774921520,0.692076,3425.1,3424.2,0.836]
[1719774921720,0.692076,3425.1,3424.7,0.06907867]
[1719774922006,2.4556,3425.0,3424.0,8.156]
[1719774922306,0.836,3424.9,3424.8,0.06904532]
[1719774922524,0.836,3424.9,3424.0,8.156]
[1719774922899,0.836,3424.9,3424.1,0.06927881]
[1719774924039,2.4556,3425.0,3424.1,0.06927881]
[1719774924040,2.4556,3425.0,3424.2,0.836]
[1719774924242,2.4556,3425.0,3424.4,0.836]
[1719774924716,2.4556,3425.0,3424.5,0.06914537]
[1719774928114,0.836,3424.9,3424.0,0.836]
[1719774928306,3.2916,3424.8,3423.8,0.836]
[1719774928511,3.2916,3424.8,3424.1,0.06931277]
[1719774928708,3.2916,3424.8,3424.0,0.836]
[1719774928911,2.4556,3424.8,3424.2,0.06927941]
[1719774929222,2.4556,3424.8,3424.3,0.06924605]
[1719774929470,0.35916,3424.7,3424.0,0.836]
[1719774929650,0.35916,3424.7,3424.4,0.06921269]
[1719774929824,0.35916,3424.7,3424.0,0.836]
[1719774930143,0.35916,3424.7,3424.5,0.06917933]
[1719774930341,0.35916,3424.7,3424.0,0.836]
[1719774930552,2.4556,3424.8,3424.0,0.836]
[1719774930722,2.4556,3424.8,3424.1,0.06931277]
[1719774937912,3.2916,3424.8,3424.1,0.06931277]
[1719774938144,2.3307,3424.7,3424.1,0.06931277]
[1719774938343,2.3307,3424.5,3423.3,2.55694129]
[1719774938518,2.3307,3424.5,3424.2,0.06933908]
[1719774938724,2.3307,3424.5,3423.5,0.836]
[1719774939050,2.3307,3424.5,3423.4,0.60392765]
[1719774939225,2.3307,3424.5,3423.6,0.836]
[1719774939550,0.31667,3424.4,3423.7,0.06950592]
[1719774941762,0.31667,3424.4,3423.6,0.836]
[1719774941932,0.31667,3424.4,3423.8,0.06947255]
[1719774942134,0.31667,3424.4,3423.7,0.06950592]
[1719774942340,0.31667,3424.4,3423.9,0.06943918]
[1719774942543,0.31667,3424.4,3423.8,0.06947255]
[1719774942741,0.31667,3424.4,3424.0,0.06940581]
[1719774942942,0.31667,3424.4,3423.9,0.06943918]
[1719774943194,0.31667,3424.4,3424.1,0.06937245]
[1719774943357,0.31667,3424.4,3424.0,0.06940581]
[1719774943664,0.31667,3424.4,3424.1,0.06937245]
[1719774943841,0.31667,3424.4,3423.6,0.836]
[1719774944042,0.31667,3424.4,3423.7,0.06950592]
[1719774945333,0.31667,3424.4,3423.7,0.836]
[1719774945641,0.31667,3424.4,3423.8,0.06947255]
[1719774946655,5.3307,3424.5,3423.8,0.06947255]
[1719774949677,2.3307,3424.5,3423.8,0.06947255]
[1719774952771,2.3307,3424.5,3423.6,0.836]
[1719774953007,2.3307,3424.5,3423.9,0.0694824]
[1719774953169,2.3307,3424.5,3423.6,0.836]
[1719774953370,2.3307,3424.5,3424.0,0.06945006]
[1719774953691,2.3307,3424.5,3424.1,0.0694167]
[1719774954078,2.3307,3424.5,3423.6,1.75951513]
[1719774954299,2.3307,3424.5,3423.7,0.06955017]
[1719774955389,2.3307,3424.5,3423.7,0.12796025]
[1719774955574,5.3307,3424.5,3423.8,0.18874754]